fUSD/lending_fUSD_20260224
["ID","MTS","AMOUNT","RATE_DAILY","PERIOD"]
[406517028,1771900051071,500.0,0.000108,2]
[406517029,1771900051102,500.0,0.000108,2]
[406517030,1771900051571,500.0,0.000108,2]
[406517031,1771900052347,500.0,0.000108,2]
[406517032,1771900052535,500.0,0.000108,2]
[406517033,1771900053029,500.0,0.000108,2]
[406517034,1771900053522,500.0,0.000108,2]
[406517035,1771900053965,500.0,0.000108,2]
[406517036,1771900054434,394.61419778,0.000108,2]
[406517037,1771900054456,105.38580222,0.000108,2]
[406517038,1771900054907,500.0,0.000108,2]
[406517039,1771900055421,788.30140125,0.000108,2]
[406517042,1771900085520,157.0,0.00013,3]
[406517043,1771900085789,157.0,0.00013,3]
[406517055,1771900146074,157.0,0.00013,3]
[406517056,1771900205503,157.0,0.00013,3]
[406517057,1771900206200,184.0,0.00013,3]
[406517074,1771900232363,-1200.0,0.00011808,2]
[406517075,1771900232373,-300.0,0.00011808,2]
[406517076,1771900232383,-300.0,0.00011808,2]
[406517077,1771900232395,-1200.0,0.00011808,2]
[406517078,1771900232405,-400.56990203,0.00011809,2]
[406517079,1771900232414,-12289.91165402,0.00011809,2]
[406517080,1771900232425,-3026.5829455,0.00011809,2]
[406517081,1771900232435,-916.35022247,0.0001183,2]
[406517082,1771900232445,-150.0,0.0001183,2]
[406517083,1771900232455,-2500.0,0.00011838,2]
[406517084,1771900232465,-22618.65196726,0.0001184,2]
[406517086,1771900232477,-492.61133274,0.0001184,2]
[406517088,1771900232486,-32875.3991,0.0001184,2]
[406517090,1771900232496,-1000.0,0.0001184,2]
[406517092,1771900232505,-5997.8622,0.00011918,2]
[406517094,1771900232515,-9999.99,0.00011918,2]
[406517096,1771900232524,-9999.99,0.00011918,2]
[406517098,1771900232534,-15636.56,0.00011931,2]
[406517100,1771900232543,-9999.99,0.00011931,2]
[406517102,1771900232553,-1205.22,0.00011931,2]
[406517104,1771900232563,-151.0,0.00011931,2]
[406517106,1771900232572,-151.0,0.00011931,2]
[406517107,1771900232582,-151.0,0.00011931,2]
[406517109,1771900232592,-151.0,0.00011931,2]
[406517110,1771900232601,-151.0,0.00011931,2]
[406517111,1771900232611,-202.29696668,0.00011931,2]
[406517112,1771900232620,-151.0,0.00011931,2]
[406517113,1771900232629,-151.0,0.00011931,2]
[406517114,1771900232640,-151.0,0.00011931,2]
[406517115,1771900232650,-151.0,0.00011931,2]
[406517116,1771900232659,-151.0,0.00011931,2]
[406517117,1771900232670,-151.0,0.00011931,2]
[406517118,1771900232680,-151.0,0.00011931,2]
[406517119,1771900232691,-151.0,0.00011931,2]
[406517120,1771900232703,-151.0,0.00011931,2]
[406517121,1771900232713,-151.0,0.00011931,2]
[406517122,1771900232723,-151.0,0.00011931,2]
[406517123,1771900232734,-151.0,0.00011931,2]
[406517124,1771900232745,-151.0,0.00011931,2]
[406517125,1771900232756,-151.0,0.00011931,2]
[406517126,1771900232766,-151.0,0.00011931,2]
[406517127,1771900232776,-500.0,0.00011931,2]
[406517128,1771900232786,-500.0,0.00011931,2]
[406517129,1771900232795,-500.0,0.00011931,2]
[406517130,1771900232804,-500.0,0.00011931,2]
[406517131,1771900232814,-500.0,0.00011931,2]
[406517132,1771900232824,-500.0,0.00011931,2]
[406517133,1771900232833,-500.0,0.00011931,2]
[406517134,1771900232844,-500.0,0.00011931,2]
[406517135,1771900232854,-500.0,0.00011931,2]
[406517136,1771900232863,-500.0,0.00011931,2]
[406517137,1771900232873,-500.0,0.00011931,2]
[406517138,1771900232882,-151.0,0.00011931,2]
[406517139,1771900232891,-151.0,0.00011931,2]
[406517140,1771900232901,-151.0,0.00011931,2]
[406517141,1771900232911,-151.0,0.00011931,2]
[406517142,1771900232920,-151.0,0.00011931,2]
[406517143,1771900232929,-151.0,0.00011931,2]
[406517144,1771900232939,-151.0,0.00011931,2]
[406517145,1771900232950,-151.0,0.00011931,2]
[406517146,1771900232960,-151.0,0.00011931,2]
[406517147,1771900232970,-151.0,0.00011931,2]
[406517148,1771900232979,-151.0,0.00011931,2]
[406517149,1771900232988,-200.0,0.00011931,2]
[406517150,1771900232998,-162.78,0.00011931,2]
[406517151,1771900233007,-349.89,0.00011933,2]
[406517152,1771900233017,-9999.99,0.00011933,2]
[406517153,1771900233026,-500.0,0.00011933,2]
[406517154,1771900233036,-9999.99,0.00011933,2]
[406517155,1771900233045,-9999.99,0.00011933,2]
[406517156,1771900233054,-522.78405343,0.00011933,2]
[406517157,1771900233066,-477.20594657,0.00011933,2]
[406517158,1771900233075,-3571.95,0.00011933,2]
[406517159,1771900233237,-1613.61,0.00011933,2]
[406517160,1771900233308,-499.99,0.00011933,2]
[406517161,1771900233319,-299.99,0.00011933,2]
[406517162,1771900233328,-150.99,0.00011933,2]
[406517163,1771900233338,-150.99,0.00011935,2]
[406517164,1771900233349,-509.44,0.00011935,2]
[406517165,1771900233359,-4999.99,0.00011935,2]
[406517166,1771900233369,-200.0,0.00012018,2]
[406517167,1771900233378,-22561.86215415,0.00012065,2]
[406517168,1771900233389,-176.71,0.000121,2]
[406517169,1771900233399,-305.0,0.00012196,2]
[406517170,1771900233409,-481.0,0.00012201,2]
[406517171,1771900233418,-162.78,0.00012205,2]
[406517172,1771900233428,-500.0,0.00012207,2]
[406517173,1771900233438,-1576.0,0.00012211,2]
[406517174,1771900233447,-373.0,0.00012216,2]
[406517175,1771900233457,-320.83419776,0.00012221,2]
[406517176,1771900233466,-1500.0,0.00012222,2]
[406517177,1771900233476,-2877.42,0.00012222,2]
[406517178,1771900233485,-1412.0,0.00012226,2]
[406517179,1771900233494,-249.0,0.00012236,2]
[406517180,1771900233504,-333.0,0.00012241,2]
[406517181,1771900233515,-1531.0,0.0001225,2]
[406517182,1771900233525,-173.0,0.00012253,2]
[406517183,1771900233534,-166.66,0.00012255,2]
[406517184,1771900233543,-987.0,0.0001226,2]
[406517185,1771900233553,-569.0,0.00012274,2]
[406517186,1771900233562,-353.3,0.00012275,2]
[406517187,1771900233572,-265.0,0.00012278,2]
[406517188,1771900233581,-1450.0,0.00012284,2]
[406517189,1771900233591,-515.0,0.00012299,2]
[406517190,1771900233600,-457.0,0.00012302,2]
[406517191,1771900233609,-1428.0,0.00012309,2]
[406517192,1771900233619,-1460.0,0.00012323,2]
[406517193,1771900233628,-404.0,0.00012327,2]
[406517194,1771900233638,-685.0,0.00012347,2]
[406517195,1771900233647,-375.0,0.00012351,2]
[406517196,1771900233657,-1087.0,0.00012372,2]
[406517197,1771900233666,-481.0,0.00012376,2]
[406517198,1771900233676,-442.90513815,0.00012377,2]
[406517199,1771900233685,-162.78227548,0.00012479,2]
[406517200,1771900233694,-500.0,0.00012481,2]
[406517201,1771900233704,-1298.0446019,0.00012527,2]
[406517202,1771900233713,-3090.266,0.00012644,2]
[406517203,1771900233722,-247.601,0.00012644,2]
[406517204,1771900233731,-166.66,0.00012647,2]
[406517205,1771900233740,-558.65,0.00012668,2]
[406517206,1771900233748,-367.14865907,0.00012755,2]
[406517207,1771900233758,-22082.28453039,0.00012789,2]
[406517208,1771900233767,-288.22,0.00012854,2]
[406517209,1771900233776,-71345.27893156,0.0001287,2]
[406517210,1771900233785,-353.3,0.00012889,2]
[406517211,1771900233795,-255.0,0.00012907,2]
[406517212,1771900233804,-1600.0,0.00012958,2]
[406517213,1771900233813,-250.0,0.00012988,2]
[406517214,1771900233823,-300.0,0.00012989,2]
[406517215,1771900233832,-1461.40007303,0.00012989,2]
[406517216,1771900233841,-5000.0,0.00012989,2]
[406517217,1771900233850,-193.0,0.00012989,2]
[406517218,1771900233860,-300.0,0.00012989,2]
[406517219,1771900233870,-1680.0,0.00012989,2]
[406517220,1771900233879,-250.0,0.0001299,2]
[406517221,1771900233889,-250.0,0.0001299,2]
[406517222,1771900233898,-166.66,0.00013038,2]
[406517223,1771900233907,-502.04928419,0.00013107,2]
[406517224,1771900233917,-233.09672483,0.00013107,2]
[406517225,1771900233926,-488.88103758,0.00013107,2]
[406517226,1771900233938,-12.59073564,0.00013107,2]
[406517227,1771900233947,-500.0,0.00013107,2]
[406517228,1771900233958,-500.0,0.00013107,2]
[406517229,1771900233967,-500.0,0.00013107,2]
[406517230,1771900233976,-435.10149882,0.00013107,2]
[406517231,1771900233987,-64.89850118,0.00013107,2]
[406517232,1771900233996,-487.15958567,0.00013107,2]
[406517233,1771900234007,-12.84041433,0.00013107,2]
[406517234,1771900234016,-500.0,0.00013107,2]
[406517235,1771900234025,-425.70958567,0.00013107,2]
[406517241,1771900238255,-500.03289567,0.00012789,2]
[406517244,1771900240390,-373.5644,0.00012789,2]
[406517245,1771900240402,-703.79971869,0.00012789,2]
[406517246,1771900240617,-157.89946117,0.00012789,2]
[406517247,1771900240627,-74.29041433,0.00013107,2]
[406517248,1771900240637,-500.0,0.00013107,2]
[406517249,1771900240658,-500.0,0.00013107,2]
[406517250,1771900240669,-500.0,0.00013107,2]
[406517251,1771900240678,-358.21910108,0.00013107,2]
[406517252,1771900240689,-141.78089892,0.00013107,2]
[406517253,1771900240699,-500.0,0.00013107,2]
[406517254,1771900240708,-500.0,0.00013107,2]
[406517255,1771900240720,-232.54300805,0.00013107,2]
[406517256,1771900240729,-500.0,0.00013107,2]
[406517257,1771900240739,-500.0,0.00013107,2]
[406517258,1771900240748,-500.0,0.00013107,2]
[406517259,1771900240757,-500.0,0.00013107,2]
[406517260,1771900240767,-500.0,0.00013107,2]
[406517261,1771900240777,-500.0,0.00013107,2]
[406517262,1771900240786,-500.0,0.00013107,2]
[406517263,1771900240795,-500.0,0.00013107,2]
[406517264,1771900240804,-500.0,0.00013107,2]
[406517265,1771900240813,-500.0,0.00013107,2]
[406517266,1771900240822,-500.0,0.00013107,2]
[406517267,1771900240832,-500.0,0.00013107,2]
[406517268,1771900240842,-259.96169612,0.00013119,2]
[406517269,1771900240851,-208.03686315,0.00013119,2]
[406517270,1771900240861,-500.0,0.00013119,2]
[406517271,1771900240870,-500.0,0.00013119,2]
[406517272,1771900240879,-500.0,0.00013119,2]
[406517273,1771900240888,-500.0,0.00013119,2]
[406517274,1771900240897,-500.0,0.00013119,2]
[406517275,1771900240906,-500.0,0.00013119,2]
[406517276,1771900240915,-500.0,0.00013119,2]
[406517277,1771900240924,-500.0,0.00013119,2]
[406517278,1771900240933,-500.0,0.00013119,2]
[406517279,1771900240943,-500.0,0.00013119,2]
[406517280,1771900240952,-500.0,0.00013119,2]
[406517281,1771900240963,-247.25821643,0.00013119,2]
[406517282,1771900240973,-500.0,0.00013119,2]
[406517283,1771900240982,-500.0,0.00013119,2]
[406517284,1771900240991,-500.0,0.00013119,2]
[406517285,1771900241000,-500.0,0.00013119,2]
[406517286,1771900241009,-500.0,0.00013119,2]
[406517287,1771900241018,-500.0,0.00013119,2]
[406517288,1771900241028,-500.0,0.00013119,2]
[406517289,1771900241036,-500.0,0.00013119,2]
[406517290,1771900241047,-500.0,0.00013119,2]
[406517291,1771900241056,-500.0,0.00013119,2]
[406517292,1771900241066,-500.0,0.00013119,2]
[406517293,1771900241076,-500.0,0.00013119,2]
[406517294,1771900241086,-500.0,0.00013119,2]
[406517295,1771900241095,-500.0,0.00013119,2]
[406517296,1771900241104,-500.0,0.00013119,2]
[406517297,1771900241114,-500.0,0.00013119,2]
[406517298,1771900241123,-500.0,0.00013119,2]
[406517299,1771900241133,-500.0,0.00013119,2]
[406517300,1771900241142,-500.0,0.00013119,2]
[406517301,1771900241151,-500.0,0.00013119,2]
[406517302,1771900241160,-500.0,0.00013119,2]
[406517303,1771900241169,-500.0,0.00013119,2]
[406517304,1771900241179,-500.0,0.00013119,2]
[406517305,1771900241188,-500.0,0.00013119,2]
[406517306,1771900241197,-500.0,0.00013119,2]
[406517307,1771900241206,-500.0,0.00013119,2]
[406517308,1771900241217,-500.0,0.00013119,2]
[406517309,1771900241233,-500.0,0.00013119,2]
[406517310,1771900241247,-500.0,0.00013119,2]
[406517311,1771900241255,-500.0,0.00013119,2]
[406517312,1771900241265,-500.0,0.00013119,2]
[406517313,1771900241274,-500.0,0.00013119,2]
[406517314,1771900241283,-500.0,0.00013119,2]
[406517315,1771900241293,-500.0,0.00013119,2]
[406517316,1771900241303,-500.0,0.00013119,2]
[406517317,1771900241312,-500.0,0.00013119,2]
[406517318,1771900241321,-500.0,0.00013119,2]
[406517319,1771900241331,-500.0,0.00013119,2]
[406517320,1771900241340,-500.0,0.00013119,2]
[406517321,1771900241350,-500.0,0.00013119,2]
[406517322,1771900241366,-500.0,0.00013119,2]
[406517323,1771900241375,-500.0,0.00013119,2]
[406517324,1771900241384,-500.0,0.00013119,2]
[406517325,1771900241394,-500.0,0.00013119,2]
[406517326,1771900241403,-500.0,0.00013119,2]
[406517327,1771900241412,-500.0,0.00013119,2]
[406517328,1771900241422,-500.0,0.00013119,2]
[406517329,1771900241431,-597.25821643,0.00013119,2]
[406517330,1771900241441,-500.0,0.00013119,2]
[406517331,1771900241450,-500.0,0.00013119,2]
[406517332,1771900241460,-500.0,0.0001312,2]
[406517333,1771900241470,-500.0,0.0001312,2]
[406517334,1771900241479,-500.0,0.0001312,2]
[406517335,1771900241488,-500.0,0.0001312,2]
[406517336,1771900241498,-500.0,0.0001312,2]
[406517337,1771900241508,-596.40260447,0.0001312,2]
[406517338,1771900241516,-500.0,0.0001312,2]
[406517339,1771900241526,-226.07766539,0.0001312,2]
[406517340,1771900241535,-500.0,0.0001312,2]
[406517341,1771900241545,-500.0,0.0001312,2]
[406517342,1771900241554,-500.0,0.0001312,2]
[406517343,1771900241564,-500.0,0.0001312,2]
[406517344,1771900241573,-502.09765964,0.0001312,2]
[406517345,1771900241583,-173.75497189,0.0001312,2]
[406517346,1771900241592,-500.0,0.0001312,2]
[406517347,1771900241601,-500.0,0.0001312,2]
[406517348,1771900241611,-500.0,0.0001312,2]
[406517349,1771900241620,-500.0,0.0001312,2]
[406517350,1771900241630,-500.0,0.0001312,2]
[406517351,1771900241639,-500.0,0.0001312,2]
[406517352,1771900241648,-500.0,0.0001312,2]
[406517353,1771900241658,-500.0,0.0001312,2]
[406517354,1771900241673,-500.0,0.0001312,2]
[406517355,1771900241683,-500.0,0.0001312,2]
[406517356,1771900241693,-500.0,0.0001312,2]
[406517357,1771900241703,-500.0,0.0001312,2]
[406517358,1771900241712,-500.0,0.0001312,2]
[406517359,1771900241722,-500.0,0.0001312,2]
[406517360,1771900241732,-500.0,0.0001312,2]
[406517361,1771900241742,-500.0,0.0001312,2]
[406517362,1771900241751,-500.0,0.0001312,2]
[406517363,1771900241760,-500.0,0.0001312,2]
[406517364,1771900241770,-500.54627495,0.0001312,2]
[406517365,1771900241779,-500.0,0.0001312,2]
[406517366,1771900241788,-500.0,0.0001312,2]
[406517367,1771900241797,-500.0,0.0001312,2]
[406517368,1771900241806,-500.0,0.0001312,2]
[406517369,1771900241816,-500.0,0.0001312,2]
[406517370,1771900241825,-500.0,0.0001312,2]
[406517371,1771900241835,-150.21976951,0.0001312,2]
[406517372,1771900241845,-500.0,0.0001312,2]
[406517373,1771900241855,-500.0,0.0001312,2]
[406517374,1771900241864,-500.0,0.0001312,2]
[406517375,1771900241873,-500.0,0.0001312,2]
[406517376,1771900241883,-658.3790613,0.0001312,2]
[406517377,1771900241892,-500.0,0.0001312,2]
[406517378,1771900241901,-500.0,0.0001312,2]
[406517379,1771900241910,-317.52639302,0.0001312,2]
[406517380,1771900241919,-517.22141529,0.0001312,2]
[406517381,1771900241929,-500.0,0.0001312,2]
[406517382,1771900241938,-500.0,0.0001312,2]
[406517383,1771900241948,-500.0,0.0001312,2]
[406517384,1771900241957,-500.0,0.0001312,2]
[406517385,1771900241968,-500.0,0.0001312,2]
[406517386,1771900241977,-500.0,0.0001312,2]
[406517387,1771900241986,-500.0,0.0001312,2]
[406517388,1771900241995,-500.0,0.0001312,2]
[406517389,1771900242005,-500.0,0.0001312,2]
[406517390,1771900242015,-500.0,0.0001312,2]
[406517391,1771900242024,-500.0,0.0001312,2]
[406517392,1771900242035,-500.0,0.0001312,2]
[406517393,1771900242045,-500.0,0.0001312,2]
[406517394,1771900242056,-500.0,0.0001312,2]
[406517395,1771900242066,-500.0,0.0001312,2]
[406517396,1771900242076,-500.0,0.0001312,2]
[406517397,1771900242086,-500.0,0.0001312,2]
[406517398,1771900242095,-500.0,0.0001312,2]
[406517399,1771900242106,-500.0,0.0001312,2]
[406517400,1771900242116,-500.0,0.0001312,2]
[406517401,1771900242126,-500.0,0.0001312,2]
[406517402,1771900242136,-500.0,0.0001312,2]
[406517403,1771900242145,-500.0,0.0001312,2]
[406517404,1771900242155,-500.0,0.0001312,2]
[406517405,1771900242165,-500.0,0.0001312,2]
[406517406,1771900242174,-500.0,0.0001312,2]
[406517407,1771900242184,-500.0,0.0001312,2]
[406517408,1771900242194,-500.0,0.0001312,2]
[406517409,1771900242203,-500.0,0.0001312,2]
[406517410,1771900242214,-500.0,0.0001312,2]
[406517411,1771900242224,-500.0,0.0001312,2]
[406517412,1771900242234,-500.0,0.0001312,2]
[406517413,1771900242245,-500.0,0.0001312,2]
[406517414,1771900242255,-500.0,0.0001312,2]
[406517415,1771900242264,-500.0,0.0001312,2]
[406517416,1771900242274,-500.0,0.0001312,2]
[406517417,1771900242283,-500.0,0.0001312,2]
[406517418,1771900242293,-500.0,0.0001312,2]
[406517419,1771900242302,-500.0,0.0001312,2]
[406517420,1771900242313,-500.0,0.0001312,2]
[406517421,1771900242322,-500.0,0.0001312,2]
[406517422,1771900242332,-500.0,0.0001312,2]
[406517423,1771900242342,-500.0,0.0001312,2]
[406517424,1771900242354,-500.0,0.0001312,2]
[406517425,1771900242365,-500.0,0.0001312,2]
[406517426,1771900242374,-500.0,0.0001312,2]
[406517427,1771900242384,-500.0,0.0001312,2]
[406517428,1771900242393,-500.0,0.0001312,2]
[406517429,1771900242404,-500.0,0.0001312,2]
[406517430,1771900242413,-500.0,0.0001312,2]
[406517431,1771900242423,-500.0,0.0001312,2]
[406517432,1771900242432,-500.0,0.0001312,2]
[406517433,1771900242441,-500.0,0.0001312,2]
[406517434,1771900242451,-500.0,0.0001312,2]
[406517435,1771900242460,-500.0,0.0001312,2]
[406517436,1771900242469,-500.0,0.0001312,2]
[406517437,1771900242479,-500.0,0.0001312,2]
[406517438,1771900242488,-500.0,0.0001312,2]
[406517439,1771900242497,-500.0,0.0001312,2]
[406517440,1771900242507,-500.0,0.0001312,2]
[406517441,1771900242516,-22082.28453032,0.00013357,2]
[406517442,1771900242525,-3240.0,0.00013425,2]
[406517443,1771900242535,-166.66,0.0001343,2]
[406517444,1771900242544,-173.07,0.00013439,2]
[406517445,1771900242555,-353.3,0.00013503,2]
[406517446,1771900242564,-1845.37,0.00013518,2]
[406517447,1771900242574,-11907.25047369,0.0001358,2]
[406517448,1771900242583,-10000.0,0.00013598,2]
[406517449,1771900242592,-171.869698,0.00013603,2]
[406517450,1771900242602,-155.613,0.00013697,2]
[406517451,1771900242611,-293.72387548,0.00013697,2]
[406517452,1771900242620,-408.55954552,0.00013697,2]
[406517453,1771900242629,-254.34507147,0.00013698,2]
[406517454,1771900242638,-500.0,0.00013698,2]
[406517455,1771900242647,-500.0,0.00013698,2]
[406517456,1771900242657,-500.0,0.00013698,2]
[406517457,1771900242666,-500.0,0.00013698,2]
[406517458,1771900242676,-500.0,0.00013698,2]
[406517459,1771900242685,-500.0,0.00013698,2]
[406517460,1771900242695,-500.0,0.00013698,2]
[406517461,1771900242704,-500.0,0.00013698,2]
[406517462,1771900242713,-500.0,0.00013698,2]
[406517463,1771900242722,-500.0,0.00013698,2]
[406517464,1771900242732,-514.81146232,0.00013698,2]
[406517465,1771900242741,-500.0,0.00013698,2]
[406517466,1771900242751,-500.0,0.00013698,2]
[406517467,1771900242760,-500.0,0.00013698,2]
[406517468,1771900242769,-500.0,0.00013698,2]
[406517469,1771900242778,-509.02499655,0.00013698,2]
[406517470,1771900242787,-500.0,0.00013698,2]
[406517471,1771900242796,-500.0,0.00013698,2]
[406517472,1771900242804,-500.0,0.00013698,2]
[406517473,1771900242813,-500.0,0.00013698,2]
[406517474,1771900242823,-500.0,0.00013698,2]
[406517475,1771900242831,-500.0,0.00013698,2]
[406517476,1771900242842,-500.0,0.00013698,2]
[406517477,1771900242851,-500.0,0.00013698,2]
[406517478,1771900242860,-500.0,0.00013698,2]
[406517479,1771900242869,-500.0,0.00013698,2]
[406517480,1771900242878,-500.0,0.00013698,2]
[406517481,1771900242887,-505.72642802,0.00013698,2]
[406517482,1771900242895,-500.0,0.00013698,2]
[406517483,1771900242905,-500.0,0.00013698,2]
[406517484,1771900242914,-500.0,0.00013698,2]
[406517485,1771900242927,-500.0,0.00013698,2]
[406517486,1771900242937,-500.0,0.00013698,2]
[406517487,1771900242946,-500.0,0.00013698,2]
[406517488,1771900242955,-500.0,0.00013698,2]
[406517489,1771900242965,-500.0,0.00013698,2]
[406517490,1771900242974,-500.0,0.00013698,2]
[406517491,1771900242983,-500.0,0.00013698,2]
[406517492,1771900242992,-500.0,0.00013698,2]
[406517493,1771900243001,-500.0,0.00013698,2]
[406517494,1771900243011,-500.0,0.00013698,2]
[406517495,1771900243020,-500.0,0.00013698,2]
[406517496,1771900243029,-505.3008994,0.00013698,2]
[406517497,1771900243038,-500.0,0.00013698,2]
[406517498,1771900243047,-500.0,0.00013698,2]
[406517499,1771900243056,-500.0,0.00013698,2]
[406517500,1771900243065,-500.0,0.00013698,2]
[406517501,1771900243075,-500.0,0.00013698,2]
[406517502,1771900243084,-500.0,0.00013698,2]
[406517503,1771900243093,-500.0,0.00013698,2]
[406517504,1771900243102,-500.0,0.00013698,2]
[406517505,1771900243110,-500.0,0.00013698,2]
[406517506,1771900243119,-500.0,0.00013698,2]
[406517507,1771900243129,-500.0,0.00013698,2]
[406517508,1771900243138,-500.0,0.00013698,2]
[406517509,1771900243147,-500.0,0.00013698,2]
[406517510,1771900243156,-500.0,0.00013698,2]
[406517511,1771900243165,-500.0,0.00013698,2]
[406517512,1771900243174,-500.0,0.00013698,2]
[406517513,1771900243183,-500.0,0.00013698,2]
[406517515,1771900243192,-174.85786729,0.00013698,2]
[406517517,1771900243201,-500.0,0.00013698,2]
[406517519,1771900243211,-500.0,0.00013698,2]
[406517521,1771900243221,-500.0,0.00013698,2]
[406517523,1771900243230,-500.0,0.00013698,2]
[406517525,1771900243239,-500.0,0.00013698,2]
[406517527,1771900243248,-500.0,0.00013698,2]
[406517529,1771900243257,-500.0,0.00013698,2]
[406517531,1771900243267,-500.0,0.00013698,2]
[406517533,1771900243276,-500.0,0.00013698,2]
[406517535,1771900243284,-500.0,0.00013698,2]
[406517536,1771900243293,-500.0,0.00013698,2]
[406517537,1771900243302,-500.0,0.00013698,2]
[406517538,1771900243311,-500.0,0.00013698,2]
[406517539,1771900243320,-500.0,0.00013698,2]
[406517541,1771900243329,-500.0,0.00013698,2]
[406517542,1771900243338,-500.0,0.00013698,2]
[406517543,1771900243352,-500.0,0.00013698,2]
[406517544,1771900243362,-500.0,0.00013698,2]
[406517545,1771900243371,-500.0,0.00013698,2]
[406517546,1771900243380,-500.0,0.00013698,2]
[406517547,1771900243389,-500.0,0.00013698,2]
[406517548,1771900243399,-500.0,0.00013698,2]
[406517549,1771900243408,-500.0,0.00013698,2]
[406517550,1771900243418,-500.0,0.00013698,2]
[406517551,1771900243427,-500.0,0.00013698,2]
[406517552,1771900243436,-500.0,0.00013698,2]
[406517553,1771900243445,-501.77257617,0.00013698,2]
[406517554,1771900243454,-500.0,0.00013698,2]
[406517555,1771900243464,-500.0,0.00013698,2]
[406517556,1771900243473,-500.0,0.00013698,2]
[406517557,1771900243482,-500.0,0.00013698,2]
[406517558,1771900243491,-500.0,0.00013698,2]
[406517559,1771900243500,-500.0,0.00013698,2]
[406517560,1771900243509,-510.28250517,0.00013698,2]
[406517561,1771900243518,-189.90244216,0.00013698,2]
[406517562,1771900243527,-500.0,0.00013698,2]
[406517563,1771900243536,-329.04605058,0.00013698,2]
[406517564,1771900243545,-511.95732454,0.00013698,2]
[406517565,1771900243555,-514.66919889,0.00013698,2]
[406517566,1771900243564,-500.0,0.00013698,2]
[406517567,1771900243573,-500.0,0.00013698,2]
[406517568,1771900243582,-500.0,0.00013698,2]
[406517569,1771900243591,-500.0,0.00013698,2]
[406517570,1771900243601,-500.0,0.00013698,2]
[406517571,1771900243610,-500.0,0.00013698,2]
[406517572,1771900243620,-500.0,0.00013698,2]
[406517573,1771900243629,-500.0,0.00013698,2]
[406517574,1771900243638,-500.0,0.00013698,2]
[406517575,1771900243648,-500.0,0.00013698,2]
[406517576,1771900243657,-500.0,0.00013698,2]
[406517577,1771900243668,-500.0,0.00013698,2]
[406517578,1771900243678,-500.0,0.00013698,2]
[406517579,1771900243688,-500.0,0.00013698,2]
[406517580,1771900243698,-500.0,0.00013698,2]
[406517581,1771900243709,-500.0,0.00013698,2]
[406517582,1771900243917,-500.0,0.00013698,2]
[406517583,1771900243926,-500.0,0.00013698,2]
[406517584,1771900243935,-500.0,0.00013698,2]
[406517585,1771900243944,-500.0,0.00013698,2]
[406517586,1771900243953,-500.0,0.00013698,2]
[406517587,1771900243963,-500.0,0.00013698,2]